Cogmind - Beta 12 @@@ ROGUE MODE // 2023.04.15 @ 20:36:49 Player: Inkie Result: Self-destructed Performance ------------- Evolutions (0) 0 Regions Visited (4) 800 Robots Destroyed (12) 60 Value Destroyed (341) 341 Prototype IDs (4) 80 Alien Tech Used (0) 0 Bonus (-84) -84 TOTAL SCORE: 1197 Bonus ------- Follower Combat Kills 28 Friendly Fire -112 Cogmind --------- Core Integrity 91/250 Matter 300/300 Energy 160/160 System Corruption 0% Temperature Warm (110) Movement Treading (320) Ox2 Location -9/Mines Parts ------- > --- POWER (1) -------- Light Nuclear Core > --- PROPULSION (2) --- Light Treads > --- UTILITY (2) ------ High-capacity Storage Unit > --- WEAPON (2) ------- Medium Laser Medium Laser > --- INVENTORY (20) --- Ion Engine Light Nuclear Core Light Treads Light Treads Light Treads Light Treads Improved Sensor Array Experimental Sensor Array Makeshift Sword Peak State ------------ > --- POWER ------------ Light Nuclear Core > --- PROPULSION ------- Light Treads Light Treads > --- UTILITY ---------- High-capacity Storage Unit > --- WEAPON ----------- Medium Laser Medium Laser > --- INVENTORY -------- Ion Engine Light Nuclear Core Light Treads Light Treads Light Treads Light Treads Improved Sensor Array Experimental Sensor Array [Rating: 10] Favorites ----------- Power Light Nuclear Core Engine Ion Engine Power Core Light Nuclear Core Propulsion Light Treads Treads Light Treads Utility High-capacity Storage Unit Storage High-capacity Storage Unit Weapon Medium Laser Energy Gun Medium Laser Build | -11 -10 -10 -10 -9 ------- Run | Jun Mat Min Exi Min Slots Evolved . | . . . . . Power . | . . . . . Propulsion . | . . . . . Utility . | . . . . . Weapon . | . . . . . Parts Attached 9 | 6 2 1 . . Power 3 | 1 1 1 . . Engine 2 | 1 1 . . . Core 1 | . . 1 . . Reactor . | . . . . . Propulsion 2 | 2 . . . . Treads 2 | 2 . . . . Leg . | . . . . . Wheel . | . . . . . Hover . | . . . . . Flight . | . . . . . Utility 2 | 1 1 . . . Device . | . . . . . Storage 2 | 1 1 . . . Processor . | . . . . . Hackware . | . . . . . Protection . | . . . . . Artifact . | . . . . . Weapon 2 | 2 . . . . Energy Gun 2 | 2 . . . . Energy Cannon . | . . . . . Ballistic Gun . | . . . . . Ballistic Cannon . | . . . . . Launcher . | . . . . . Special Weapon . | . . . . . Impact Weapon . | . . . . . Slashing Weapon . | . . . . . Piercing Weapon . | . . . . . Special Melee Weapon . | . . . . . Unidentified Prototypes . | . . . . . Parts Lost 1 | . . . . 1 Power . | . . . . . Propulsion 1 | . . . . 1 Utility . | . . . . . Weapon . | . . . . . Highest Loss Streak 1 | . . . . 1 To Critical Strikes . | . . . . . Average Slot Usage (%) 84 | . 84 85 85 85 Engine 3 | . 13 . . . Core 9 | . . 13 14 14 Treads 28 | . 28 28 28 28 Storage 14 | . 14 14 14 14 Energy Gun 28 | . 28 28 28 28 Naked Turns . | . . . . . Heaviest Build 49 | 14 49 49 49 49 Greatest Support 40 | 40 40 40 40 40 Greatest Overweight (x) 1 | 1 1 1 1 1 Average Overweight (x) . | . . 1 1 1 Largest Inventory Capacity 20 | 8 20 20 20 20 Average Capacity 18 | 6 16 20 20 20 Most Carried 9 | . 5 8 8 9 Average Carried 6 | . 3 7 8 8 Final Capacity 20 | 8 20 20 20 20 Final Carried 9 | . 5 8 8 9 Class Distribution -------------------- 100% | Mutant Dominant Class ---------------- Mutant | -10/Materials Mutant | -10/Mines Mutant | -10/Exiles Mutant | -9/Mines Resources | -11 -10 -10 -10 -9 ----------- Run | Jun Mat Min Exi Min Matter Collected 290 | 192 88 10 . . Remotely . | . . . . . Salvage Created 458 | . 390 . . 68 Parts 17 | . 10 . . 7 Haulers Intercepted . | . . . . . Recyclers Shooed . | . . . . . Parts Field Recycled . | . . . . . Retrieved Matter . | . . . . . Parts Self-Destructed . | . . . . . Prevented . | . . . . . Kills | -11 -10 -10 -10 -9 ------- Run | Jun Mat Min Exi Min Combat Hostiles Destroyed 11 | . 8 . . 3 Guns 11 | . 8 . . 3 Classes Destroyed 2 | . 1 . . 1 Swarmer 3 | . . . . 3 Grunt 9 | . 8 . . 1 Best Kill Streak 4 | . 4 . . 2 Combat Bots Only 4 | . 4 . . 2 Max Kills in Single Turn 2 | . 1 . . 2 Gunslinging . | . . . . . Exploded . | . . . . . Melee . | . . . . . Uniques/NPCs Destroyed . | . . . . . Combat | -11 -10 -10 -10 -9 -------- Run | Jun Mat Min Exi Min Damage Taken 597 | . 411 . . 186 Core 159 | . 117 . . 42 Absorbed by Shields . | . . . . . Regen/Repaired (Parts) 35 | . 35 . . . Core Remaining (%) 100 | 100 . . . . Volleys Fired 35 | . 27 . . 8 Largest 2 | . 2 . . 2 Hottest 100 | . 100 . . 100 Shots Fired 70 | . 54 . . 16 Gun 70 | . 54 . . 16 Cannon . | . . . . . Launcher . | . . . . . Special . | . . . . . Kinetic . | . . . . . Thermal 70 | . 54 . . 16 Explosive . | . . . . . Electromagnetic . | . . . . . Robot Hit Streak 19 | . 19 . . 3 Robot Miss Streak 4 | . 2 . . 4 Penetration Max . | . . . . . Secondary Targets . | . . . . . Shots Hit Robots 47 | . 42 . . 5 Core Hits 23 | . 19 . . 4 Critical Kills . | . . . . . Critical Parts Destroyed . | . . . . . Critical Strikes 4 | . 4 . . . Burn 4 | . 4 . . . Melee Attacks . | . . . . . Impact . | . . . . . Slashing . | . . . . . Piercing . | . . . . . Sneak Attacks . | . . . . . Combat Hostiles . | . . . . . Follow-up Attacks . | . . . . . Damage Inflicted 603 | . 529 . . 74 Guns 603 | . 529 . . 74 Cannons . | . . . . . Explosions . | . . . . . Melee . | . . . . . Ramming . | . . . . . Kinetic . | . . . . . Thermal 603 | . 529 . . 74 Explosive . | . . . . . Electromagnetic . | . . . . . Impact . | . . . . . Slashing . | . . . . . Piercing . | . . . . . Highest Corruption . | . . . . . Average Corruption . | . . . . . Corruption Purged . | . . . . . Corruption Blocked . | . . . . . Overload Shots . | . . . . . Overflow Damage . | . . . . . Projectiles . | . . . . . Explosions . | . . . . . Melee . | . . . . . Knockbacks . | . . . . . Impact . | . . . . . Kinetic . | . . . . . Secondary . | . . . . . Self-Inflicted Damage . | . . . . . Shots . | . . . . . Rammed . | . . . . . Targets Rammed . | . . . . . Kicked . | . . . . . Crushed . | . . . . . Highest Temperature 500 | . 500 . . 135 Average Temperature 169 | . 196 . . 70 Received Heat Transfer 251 | . 231 . . 20 Effects 9 | . 9 . . . Shutdowns 2 | . 2 . . . Energy Bleed 5 | . 5 . . . Damage (minor) 1 | . 1 . . . Damage (core) 1 | . 1 . . . Siege Activations . | . . . . . Robots Corrupted . | . . . . . Combat Hostiles . | . . . . . Parts Fried . | . . . . . Impact Corruptions . | . . . . . Robots Melted . | . . . . . Combat Hostiles . | . . . . . Parts Melted 9 | . 9 . . . Heat Transferred 2072 | . 1850 . . 222 Parts Sabotaged . | . . . . . Parts Stolen . | . . . . . Parts Stripped . | . . . . . Power Chain Reactions . | . . . . . Missiles Intercepted . | . . . . . Alert | -11 -10 -10 -10 -9 ------- Run | Jun Mat Min Exi Min Peak Influence 157 | . 157 53 . 134 Initial 53 | . . 53 . . Average 57 | . 74 26 . 108 Maximum Alert Level . | . . . . . Low Security (%) 100 | 100 100 100 . 100 Level 1 . | . . . . . Level 2 . | . . . . . Level 3 . | . . . . . Level 4 . | . . . . . Level 5 . | . . . . . High Security . | . . . . . Max Security . | . . . . . Squads Dispatched 3 | . 2 1 . . Investigation 3 | . 2 1 . . Extermination . | . . . . . Reinforcement . | . . . . . Assault . | . . . . . Garrison . | . . . . . Intercept . | . . . . . Searches Triggered . | . . . . . Construction Impeded . | . . . . . Haulers Reinforced . | . . . . . Active Scanning Responses . | . . . . . Cargo Convoy Interrupts . | . . . . . Stealth | -11 -10 -10 -10 -9 --------- Run | Jun Mat Min Exi Min Distress Signals 4 | . 4 . . . Communications Jammed . | . . . . . Distress Signals . | . . . . . Times Spotted 30 | . 16 . . 14 Peak Tracking Total 7 | . 4 . . 7 Tactical Retreats 1 | . 1 . . . Traps | -11 -10 -10 -10 -9 ------- Run | Jun Mat Min Exi Min Traps Triggered 2 | . 2 . . . Indirectly . | . . . . . Trap Hack Attempts . | . . . . . Triggered . | . . . . . Disarmed . | . . . . . Reprogrammed . | . . . . . Reused . | . . . . . Traps Extracted . | . . . . . Installed . | . . . . . Triggered . | . . . . . Machines | -11 -10 -10 -10 -9 ---------- Run | Jun Mat Min Exi Min Machines Disabled . | . . . . . Max in Single Turn . | . . . . . Machines Repaired . | . . . . . Machines Sabotaged . | . . . . . Overloaded Fab Kills . | . . . . . Hacking | -11 -10 -10 -10 -9 --------- Run | Jun Mat Min Exi Min Machines Accessed 7 | . 5 1 1 . Terminals 4 | . 4 . . . Fabricators . | . . . . . Repair Stations 1 | . 1 . . . Recycling Units . | . . . . . Scanalyzers . | . . . . . Garrison Access . | . . . . . Total Hacks 14 | . 12 1 1 . Successful 8 | . 6 1 1 . Failed 6 | . 6 . . . Catastrophic 1 | . 1 . . . Database Lockouts . | . . . . . Manual 7 | . 7 . . . Terminals 10 | . 10 . . . Fabricators . | . . . . . Repair Stations 2 | . 2 . . . Recycling Units . | . . . . . Scanalyzers . | . . . . . Garrison Access . | . . . . . Terminal Hacks 5 | . 3 1 1 . Record 1 | . . . 1 . Prototype ID Bank 2 | . 2 . . . Open Door 1 | . . 1 . . Branch Access Points 1 | . 1 . . . Fabricator Hacks . | . . . . . Repair Station Hacks 2 | . 2 . . . Scan Component 1 | . 1 . . . Repair 1 | . 1 . . . Recycling Unit Hacks . | . . . . . Scanalyzer . | . . . . . Garrison Access Hacks . | . . . . . Unauthorized Hacks 1 | . 1 . . . Terminals 1 | . 1 . . . Botnet 1 | . 1 . . . Fabricators . | . . . . . Repair Stations . | . . . . . Recycling Units . | . . . . . Scanalyzers . | . . . . . Garrison Access . | . . . . . Data Cores Recovered . | . . . . . Used . | . . . . . Hacking Detections 5 | . 5 . . . Full Trace Events . | . . . . . Feedback Events . | . . . . . Feedback Blocked . | . . . . . Robot Schematics Acquired . | . . . . . Robots Built . | . . . . . Authchips . | . . . . . Time . | . . . . . Total Robot Build Rating . | . . . . . Part Schematics Acquired . | . . . . . Parts Built . | . . . . . Authchips . | . . . . . Time . | . . . . . Total Part Build Rating . | . . . . . Parts Repaired 1 | . 1 . . . Time 26 | . 26 . . . Parts Recycled . | . . . . . Recycled Matter . | . . . . . Retrieved Matter . | . . . . . Retrieved Components . | . . . . . Parts Scanalyzed . | . . . . . Part Schematics Acquired . | . . . . . Parts Damaged . | . . . . . Bothacking | -11 -10 -10 -10 -9 ------------ Run | Jun Mat Min Exi Min Used RIF Installer . | . . . . . Robots Hacked . | . . . . . Non-combat . | . . . . . Combat . | . . . . . Robot Hacks Applied . | . . . . . Relay Couplers Released . | . . . . . Fabnet Peak Effective % . | . . . . . Robots Rewired . | . . . . . Allies Hacked . | . . . . . Hacks Repelled . | . . . . . Allies | -11 -10 -10 -10 -9 -------- Run | Jun Mat Min Exi Min Total Allies 4 | . . 1 . 3 Largest Group 3 | . . 1 1 3 Highest-Rated Group 40 | . . 31 31 40 Highest-Rated Ally 31 | . . 31 31 16 Total Orders . | . . . . . Ally Attacks 17 | . . . . 17 Total Damage 150 | . . . . 150 Kills 4 | . . . . 4 Allies Corrupted . | . . . . . Allies Melted . | . . . . . Intel | -11 -10 -10 -10 -9 ------- Run | Jun Mat Min Exi Min Robot Analysis Total . | . . . . . Derelict Logs Recovered 2 | . . 1 . 1 Drone Launches . | . . . . . Drone Recoveries . | . . . . . Exploration | -11 -10 -10 -10 -9 ------------- Run | Jun Mat Min Exi Min Turns Passed 2410 | 115 633 805 444 413 Spaces Moved 987 | 70 245 325 186 161 Core 14 | 14 . . . . Treads 973 | 56 245 325 186 161 Legs . | . . . . . Wheels . | . . . . . Hover . | . . . . . Flight . | . . . . . Fastest Speed 50 | 50 160 240 240 240 Average Speed 224 | 138 205 240 240 240 Slowest Speed 240 | 160 240 240 240 240 Overloaded Moves . | . . . . . Propulsion Burnouts . | . . . . . Robots Hopped . | . . . . . Cave-ins Triggered . | . . . . . Exploration Rate (%) 48 | 4 57 74 54 51 Regions Visited 4 Branch Regions 3 Pre-discovered Areas 1 | . . . 1 . Known Exits Taken 1 | . 1 . . . Unknown Exits Taken 3 | 1 . 1 1 . Scrap Searched 1 | . . . . 1 Spaces Dug . | . . . . . Terrain Destroyed . | . . . . . Melee . | . . . . . Projectile . | . . . . . AOE . | . . . . . Terrain Rammed . | . . . . . Walls Destroyed . | . . . . . Machines Disabled . | . . . . . Actions | -11 -10 -10 -10 -9 --------- Run | Jun Mat Min Exi Min Total 1112 | 85 321 350 185 171 Wait 76 | 10 42 23 . 1 Move 983 | 69 244 324 185 161 Hop . | . . . . . Pick Up 8 | . 5 2 . 1 Fast Attach 8 | 6 2 . . . Attach . | . . . . . Detach . | . . . . . Swap 1 | . . 1 . . Drop 1 | . 1 . . . Fire 35 | . 27 . . 8 Melee . | . . . . . Ram . | . . . . . Kick . | . . . . . Crush . | . . . . . Escape Stasis . | . . . . . Rewire . | . . . . . Trap . | . . . . . Miscellaneous . | . . . . . Route ------- -11/Junkyard -10/Materials (discovered 3 exits: [*Mat] / *Min x2) -10/Mines (discovered 3 exits: [*Mat x2] / *Exi) -10/Exiles (discovered 2 exits: [*Min x2]) -9/Mines History --------- Turn | Location | Event 3 | -11/Junkyard | Discovered new exit (range 15) 116 | -11/Junkyard | Entered Materials 289 | -10/Materials | Discovered new exit (range 5) 328 | -10/Materials | Build established: Mutant 454 | -10/Materials | Discovered new exit (range 10) 531 | -10/Materials | Repaired Ion Engine 677 | -10/Materials | Identified exit to Mines 749 | -10/Materials | Entered Mines 754 | -10/Mines | Met a Derelict bent on vengeance 770 | -10/Mines | Met a Derelict shopkeep closing up shop 915 | -10/Mines | Learned 2 Materials zone layouts 957 | -10/Mines | Found a damaged Exp. Sensor Array with a note attached 962 | -10/Mines | Found Prototype Device 1046 | -10/Mines | Discovered new exit (range 15) 1340 | -10/Mines | Discovered new exit (range 9) 1353 | -10/Mines | Escorted by a lone wolf Derelict 1542 | -10/Mines | Deemed a non-threat by the Exiles lab entrance 1544 | -10/Mines | Discovered new exit (range 5) 1554 | -10/Mines | Entered Exiles 1554 | -10/Exiles | Accompanied by 1 ally 1595 | -10/Exiles | Discovered new exit (range 15) 1622 | -10/Exiles | Met 8R-AWN 1658 | -10/Exiles | Met EX-HEX 1763 | -10/Exiles | Met EX-DEC 1905 | -10/Exiles | Learned location of Zion (-6) 1970 | -10/Exiles | Discovered new exit (range 14) 1998 | -10/Exiles | Entered Mines 2003 | -9/Mines | Assisted by bots powering up and referring to "LRC-V3" 2028 | -9/Mines | Core integrity fell below 50% 2063 | -9/Mines | Learned 2 Materials zone layouts 2236 | -9/Mines | A weapon hastily lodged in a ceiling crevice suddenly fell to the ground 2348 | -9/Mines | Assembled infested the area 2411 | -9/Mines | Self-destructed Last Messages --------------- 02109_ Destroyed Flight Unit. 02109_ S-10 Pest suffers critical hit (Burn). 02111_ S-10 Pest destroyed. 02112_ Trooper 2a destroyed. 02113_ S-10 Pest destroyed. 02118_ Trooper 2b destroyed. 02122_ S-10 Pest destroyed. 02124_ R-06 Scavenger collects Imp. Heat Sink. 02125_ S-10 Pest destroyed. 02150_ T-07 Excavator is excavating. 02236_ A Mak. Sword has been hastily shoved under some rubble with a note attached: "Here lies the sword of MA-1KR the Great. I think." 02289_ Acquired Mak. Sword. 02330_ Searching scrap... 02330_ Found Disposable Heat Sink. 02330_ Found 22 Matter. 02348_ ALERT: Infestation in the mines, dispatching Demolisher response squad. 02362_ T-07 Excavator destroyed. 02411_ Lgt. Treads destroyed. Map ----- +----------------------------------------------------+ | | | | | | | | | | | | | | | | | | | | | | | | | | | ????????????????????????????????? | | ???????????????????????????####?? | | ????####????###??????????### ##? | | ???## ##### #?????????## #? | | ???# #?????????# #? | | ???# ##????????## #? | | ???# ####?????????# ## | | ???# ##?????????#### # | | ???# ##?????????# | | ??## ########### | | ??# aa # | | ??# a a a ## ## | | ??## @ ## ################ | | ???## ### #??????????????## | | ???## ####?# #???????????????# | | ???# ##????# #???????????????# | | ???# ####### #?????##????????? | | ???## #????## #???????# | | ????# #########????# #?????## | | ????# #????????????# ###### | | ????# ##????????????# | | ????# ##???????????# | | ????# ##??????????## * | | ????# ##??????????## % | | ????## ##??????????## = | | ?????# #???????????## | | ?????## #?????????#### [% | | ??????### ##????????## * | | ????????# ##????????## % | | ????????# #???????### | | ????????# ######### | | ????????#%!= | | ????????# !% | | ????????##### ##### ## | | ????????????# #???##### #?? | | ????????????# #???????#### ??? | | ????????????# #??????????## #??? | +----------------------------------------------------+ Best States ------------- Heat Dissipation 25 Energy Generation 14 Energy Capacity 250 Matter Stores 300 Matter Capacity 300 Sight Range 16 Terrain Scan Density 10 Evasion (%) 50 Recoil Reduction 2 Item Schematics ----------------- None Robot Schematics ------------------ None Fabricated ------------ Nothing Alien Tech Used ----------------- None Achievements -------------- None Challenges ------------ None Game ------ Seed RegenerativeStormComputer Manual? 0 Play Time 00:09:12 Cumulative 451.7 hours Start 2023.04.15 @ 20:28:26 End 2023.04.15 @ 20:36:49 Sessions 1 Manual Loads 0 Difficulty Rogue Special Mode None Game No. 494 Rogue 485 Adventurer 8 Explorer 1 Win Type - Total 7 Types 4/1/2/0/0/0/0/0/0 Lore% 79 Gallery% 90 Achievement% 71 Wizard Run 0 Options --------- ASCII 0 Keyboard 0 Movement Numpad Keybinds 1 Fullscreen 2 Font 18/Terminus Map View 76x50 Tactical HUD 1 Map Filters NONE Filters NONE Steam 1 RUN: af4c99be-2e81-4f6d-b645-8759355e1325